[Event "EYCC O18-ch 2024"]
[Site "Prague"]
[Date "2024.08.29"]
[Round "7.12"]
[White "Babula, Vlastimil"]
[Black "Kuti, Oliver"]
[Result "1-0"]
[ECO "D71"]
[WhiteElo "2503"]
[BlackElo "2114"]
[Annotator "TA"]
[PlyCount "67"]
[EventDate "2024.08.19"]
[EventType "swiss"]
[EventCountry "CZE"]
[SourceTitle "playchess.com"]
[Source "ChessBase"]
[SourceQuality "1"]
[TimeControl "5400+30"]

{[%evp 9,67,10,18,20,24,13,12,10,33,11,16,0,0,-13,20,19,35,27,30,9,48,57,66,59,62,29,31,27,24,36,67,30,34,32,27,27,33,35,95,100,107,100,105,108,152,158,176,175,171,177,231,215,271,268,269,266,255,245,231,125]} 1. d4 {[%emt 0:00:04]} Nf6 {[%emt 0:00:06][%cal Bg8f6,Bf6d7,Bd7b6][%mdl 32]} 2. c4 {[%emt 0:00:05]} g6 {[%emt 0:00:27]} 3. g3 {[%emt 0:00:03]} c6 {[%emt 0:07:22]} 4. Bg2 {[%emt 0:00:23]} d5 {[%emt 0:00:19]} 5. Qa4 {[%emt 0:04:40]} Nfd7 {[%emt 0:03:58]} 6. cxd5 {[%emt 0:00:49]} Nb6 {[%emt 0:00:09][%csl LRa4,LRd5]} 7. Qd1 {[%emt 0:00:07]} cxd5 {[%emt 0:00:10]} 8. Nc3 {[%emt 0:00:44] The position is equal.} Bg7 {[%emt 0:00:42]} 9. Nf3 {[%emt 0:01:33]} Nc6 {[%emt 0:01:47]} 10. Bf4 {[%emt 0:01:18]} O-O {[%emt 0:00:37]} 11. O-O {[%emt 0:00:44]} e6 {[%emt 0:13:03]} 12. Rc1 {[%emt 0:08:22]} Bd7 {[%emt 0:08:40]} 13. h4 {[%emt 0:06:25]} Rc8 {[%emt 0:04:08]} 14. Re1 {[%emt 0:08:29]} h6 {[%emt 0:08:31]} 15. Nb5 {[%emt 0:07:30]} Ne5 {[%emt 0:04:58]} 16. Nxe5 {[%emt 0:18:59]} ({Much worse is} 16. Nxa7 Nxf3+ 17. Bxf3 (17. exf3 Rxc1 18. Qxc1 Qa8 $17) 17... Rxc1 18. Qxc1 Qa8 (18... Bxd4 19. e3 $14) 19. Bxh6 Qxa7 $17) 16... Bxb5 {[%emt 0:04:18]} 17. b3 {[%emt 0:00:52] Against Nc4. White is more active.} Nd7 {[%emt 0:01:25]} 18. Qd2 {[%emt 0:04:00]} Nxe5 {[%emt 0:01:42]} 19. dxe5 {[%emt 0:01:11]} Kh7 {[%emt 0:02:10]} 20. e4 {[%emt 0:06:55]} dxe4 {[%emt 0:01:32]} 21. Qxd8 {[%emt 0:02:59]} (21. Qe3 {seems wilder.} Qa5 22. a4 Bc6 23. Bxe4 Rfd8 24. h5) 21... Rfxd8 {[%emt 0:00:35]} 22. Bxe4 {[%emt 0:00:06]} (22. Rxe4 $2 {is the wrong capture.} Rxc1+ 23. Bxc1 Rd1+ 24. Kh2 Rxc1 $19) 22... Bc6 {[%emt 0:05:19]} 23. Bxc6 {[%emt 0:00:28]} Rxc6 {[%emt 0:12:50]} ({Black should play} 23... bxc6 $14 24. Rc5 Bf8) 24. Rxc6 $16 {[%emt 0:00:06]} bxc6 $14 {[%emt 0:00:02][%mdl 4096] Endgame. KRB-KRB} 25. Rc1 {[%emt 0:01:19]} Rc8 {[%emt 0:00:07]} 26. Rc5 {[%emt 0:02:01]} Bf8 {[%emt 0:01:50]} 27. Ra5 {[%emt 0:00:07]} Rc7 {[%emt 0:00:04]} 28. Be3 {[%emt 0:00:40]} c5 {[%emt 0:00:09]} 29. Kf1 {[%emt 0:00:23]} Be7 {[%emt 0:12:07]} (29... Kg7 {was worth a try.} 30. Ra6 Kh7) 30. Ke2 $18 {[%emt 0:01:32]} g5 {[%emt 0:03:27] [#]} 31. h5 {[%emt 0:02:40]} Kg7 {[%emt 0:00:04]} 32. Kd3 {[%emt 0:00:39]} f6 {[%emt 0:02:35]} 33. exf6+ {[%emt 0:08:08]} Kxf6 {[%emt 0:00:02]} 34. a4 {[%emt 0:00:06] Weighted Error Value: White=0.06 (flawless) /Black=0.15 (very precise) .  Mistake:       	White=1     	Black=2      Inaccurate:     	White=2     	Black=4      OK:         	White=14    	Black=8      Best:        	White=1     	Black=2} (34. Kc4 $18) 1-0

[Event "EYCC O18-ch 2024"]
[Site "Prague"]
[Date "2024.08.29"]
[Round "7.12"]
[White "Ribera Veganzones, Serni"]
[Black "Davtyan, Arsen"]
[Result "0-1"]
[ECO "C78"]
[WhiteElo "2309"]
[BlackElo "2402"]
[Annotator "RC"]
[PlyCount "104"]
[EventDate "2024.08.19"]
[EventType "swiss"]
[EventCountry "CZE"]
[SourceTitle "playchess.com"]
[Source "ChessBase"]
[SourceQuality "1"]
[TimeControl "5400+30"]

1. e4 {[%emt 0:00:00]} e5 {[%emt 0:01:33]} 2. Nf3 {[%emt 0:00:09]} Nc6 {[%emt 0:00:12]} 3. Bb5 {[%emt 0:00:10]} a6 {[%emt 0:00:09]} 4. Ba4 {[%emt 0:00:08]} Nf6 {[%emt 0:00:05]} 5. O-O {[%emt 0:00:09]} Bc5 {[%emt 0:00:05]} 6. Bxc6 {[%emt 0:05:53]} dxc6 {[%emt 0:04:16]} 7. d3 {[%emt 0:00:12]} Qe7 {[%emt 0:08:52]} 8. Nbd2 {[%emt 0:01:48]} Bg4 {[%emt 0:02:40]} 9. Nb3 {[%emt 0:09:18]} Bd6 {[%emt 0:05:45]} 10. Na5 {[%emt 0:01:19]} O-O-O {[%emt 0:14:15]} 11. a3 {[%emt 0:01:42]} Nd7 {[%emt 0:04:40]} 12. h3 {[%emt 0:04:15]} Bh5 {[%emt 0:08:58]} 13. b4 {[%emt 0:02:05]} f5 {[%emt 0:03:54]} 14. Rb1 {[%emt 0:17:09]} f4 {[%emt 0:22:38]} 15. c4 {[%emt 0:01:06]} Qe6 {[%emt 0:00:46]} 16. b5 {[%emt 0:05:18]} cxb5 {[%emt 0:04:26]} 17. cxb5 {[%emt 0:00:33]} axb5 {[%emt 0:00:04]} 18. Rxb5 {[%emt 0:03:05]} Nc5 {[%emt 0:00:30]} 19. d4 {[%emt 0:08:37]} exd4 {[%emt 0:03:55]} 20. Nxb7 {[%emt 0:02:07]} Nxb7 {[%emt 0:02:59]} 21. Rxh5 {[%emt 0:00:08]} c5 {[%emt 0:02:02]} 22. Re1 {[%emt 0:12:32]} Bc7 {[%emt 0:01:01]} 23. Ng5 {[%emt 0:02:37]} Qd7 {[%emt 0:03:24]} 24. e5 {[%emt 0:00:40]} g6 {[%emt 0:00:13]} 25. Rh4 {[%emt 0:02:53]} h6 {[%emt 0:00:08]} 26. Ne4 {[%emt 0:04:58]} g5 {[%emt 0:00:09]} 27. Rh5 {[%emt 0:00:29]} c4 {[%emt 0:02:41]} 28. e6 {[%emt 0:01:21]} Qxe6 {[%emt 0:00:36]} 29. Nxg5 {[%emt 0:00:57]} Qc6 {[%emt 0:01:36]} 30. Re6 {[%emt 0:02:36]} Qd7 {[%emt 0:00:49]} 31. Rexh6 Rxh6 32. Rxh6 {[%emt 0:03:04]} Nc5 {[%emt 0:01:34]} 33. Qf3 {[%emt 0:02:36]} Qd5 {[%emt 0:00:01]} 34. Qg4+ {[%emt 0:00:14]} Qd7 {[%emt 0:01:11]} 35. Qf3 Qd5 36. Qg4+ {[%emt 0:00:16]} Kb7 {[%emt 0:00:43]} 37. Bxf4 {[%emt 0:01:04]} d3 {[%emt 0:00:13]} 38. Bd2 {[%emt 0:06:26]} Nb3 {[%emt 0:00:01]} 39. Ne6 {[%emt 0:00:46]} Nxd2 {[%emt 0:01:02]} 40. Rh7 {[%emt 0:01:08]} Rc8 {[%emt 0:01:49]} 41. Nxc7 {[%emt 0:00:28]} Rxc7 {[%emt 0:00:27]} 42. Rxc7+ {[%emt 0:00:01]} Kxc7 {[%emt 0:00:01]} 43. Qf4+ {[%emt 0:00:08]} Kc6 {[%emt 0:00:52]} 44. Qxd2 {[%emt 0:00:01]} Qd4 {[%emt 0:00:09]} 45. Qh6+ {[%emt 0:00:23]} Kb5 {[%emt 0:00:21]} 46. a4+ {[%emt 0:00:52]} Kxa4 {[%emt 0:00:40]} 47. Qa6+ {[%emt 0:00:40]} Kb3 {[%emt 0:00:03]} 48. Qb5+ {[%emt 0:00:27]} Kc2 {[%emt 0:00:15]} 49. Qa4+ {[%emt 0:00:08]} Kc1 {[%emt 0:00:06]} 50. Qa3+ {[%emt 0:00:42]} Kb1 {[%emt 0:00:54]} 51. Qb4+ {[%emt 0:00:11]} Qb2 {[%emt 0:00:23]} 52. Qa4 {[%emt 0:01:04]} d2 {[%emt 0:00:17]} 0-1

[Event "EYCC O18-ch 2024"]
[Site "Prague"]
[Date "2024.08.29"]
[Round "7.13"]
[White "Kreken, Eivind Grunt"]
[Black "Talibov, Shiroghlan"]
[Result "0-1"]
[ECO "A06"]
[WhiteElo "2294"]
[BlackElo "2395"]
[Annotator "RC"]
[PlyCount "70"]
[EventDate "2024.08.19"]
[EventType "swiss"]
[EventCountry "CZE"]
[SourceTitle "playchess.com"]
[Source "ChessBase"]
[SourceQuality "1"]
[TimeControl "5400+30"]

1. Nf3 {[%emt 0:00:03]} d5 {[%emt 0:00:12]} 2. g3 {[%emt 0:00:35]} g6 {[%emt 0:01:47]} 3. Bg2 {[%emt 0:01:28]} Bg7 {[%emt 0:00:24]} 4. d4 {[%emt 0:00:25]} Nf6 {[%emt 0:00:21]} 5. O-O {[%emt 0:01:04]} O-O {[%emt 0:00:21]} 6. c4 {[%emt 0:00:18]} dxc4 {[%emt 0:00:07]} 7. Na3 {[%emt 0:00:11]} c3 {[%emt 0:00:05]} 8. bxc3 {[%emt 0:00:47]} c5 {[%emt 0:00:05]} 9. Ne5 {[%emt 0:09:40]} Nc6 {[%emt 0:00:14]} 10. Nxc6 {[%emt 0:02:09]} bxc6 {[%emt 0:00:05]} 11. Nc4 {[%emt 0:06:58]} Be6 {[%emt 0:00:09]} 12. Ne5 {[%emt 0:03:56]} Nd5 {[%emt 0:00:05]} 13. Bb2 {[%emt 0:11:17]} Qc7 {[%emt 0:00:55]} 14. Nd3 {[%emt 0:11:47]} Rab8 {[%emt 0:06:08]} 15. Qc2 {[%emt 0:07:07]} cxd4 {[%emt 0:34:49]} 16. cxd4 {[%emt 0:00:11]} Nb4 {[%emt 0:01:55]} 17. Nxb4 {[%emt 0:02:22]} Rxb4 {[%emt 0:00:02]} 18. Bc3 {[%emt 0:14:12]} Rc4 {[%emt 0:01:23]} 19. Qd2 {[%emt 0:00:57]} c5 {[%emt 0:01:21]} 20. e3 {[%emt 0:02:38]} cxd4 {[%emt 0:00:36]} 21. Bxd4 {[%emt 0:00:32]} Rd8 {[%emt 0:02:59]} 22. Rfd1 {[%emt 0:07:57]} Bxd4 {[%emt 0:02:23]} 23. exd4 {[%emt 0:00:11]} Bg4 {[%emt 0:00:06]} 24. Rdc1 {[%emt 0:07:49]} Rdxd4 {[%emt 0:00:16]} 25. Qe3 {[%emt 0:01:02]} Be6 {[%emt 0:00:59]} 26. h4 {[%emt 0:00:40]} h5 {[%emt 0:02:59]} 27. a4 {[%emt 0:04:04]} Qa5 {[%emt 0:04:38]} 28. Rcb1 {[%emt 0:01:49]} Rb4 {[%emt 0:01:32]} 29. Rc1 {[%emt 0:01:56]} Rdc4 {[%emt 0:02:15]} 30. Bc6 {[%emt 0:00:38]} Rb3 {[%emt 0:01:32]} 31. Qe2 {[%emt 0:00:41]} Qc5 {[%emt 0:00:13]} 32. Rxc4 {[%emt 0:00:33]} Rxg3+ {[%emt 0:02:04]} 33. Bg2 {[%emt 0:00:13]} Bxc4 {[%emt 0:00:11]} 34. Rc1 {[%emt 0:00:36]} Rxg2+ {[%emt 0:00:12]} 35. Kxg2 {[%emt 0:00:10]} Bd5+ {[%emt 0:00:02]} 0-1

[Event "EYCC O18-ch 2024"]
[Site "Prague"]
[Date "2024.08.29"]
[Round "7.13"]
[White "Ozen, Metehan"]
[Black "Falkevall, Axel"]
[Result "1-0"]
[ECO "C79"]
[WhiteElo "2142"]
[BlackElo "2325"]
[Annotator "RC"]
[PlyCount "149"]
[EventDate "2024.08.19"]
[EventType "swiss"]
[EventCountry "CZE"]
[SourceTitle "playchess.com"]
[Source "ChessBase"]
[SourceQuality "1"]
[TimeControl "5400+30"]

1. e4 {[%emt 0:00:06]} e5 {[%emt 0:00:14]} 2. Nf3 {[%emt 0:00:06]} Nc6 {[%emt 0:00:04]} 3. Bb5 {[%emt 0:00:10]} a6 {[%emt 0:00:07]} 4. Ba4 {[%emt 0:00:03]} Nf6 {[%emt 0:00:14]} 5. O-O {[%emt 0:00:11]} d6 {[%emt 0:00:07]} 6. Bxc6+ {[%emt 0:00:44]} bxc6 {[%emt 0:00:07]} 7. d4 {[%emt 0:00:05]} exd4 {[%emt 0:00:32]} 8. Nxd4 {[%emt 0:00:54]} c5 {[%emt 0:00:52]} 9. Nf5 {[%emt 0:00:58]} Be6 {[%emt 0:15:13]} 10. Qf3 {[%emt 0:12:46]} Nd7 {[%emt 0:04:13]} 11. Nc3 {[%emt 0:03:19]} g6 {[%emt 0:01:32]} 12. Re1 {[%emt 0:18:43]} Ne5 {[%emt 0:10:45]} 13. Qg3 {[%emt 0:00:36]} f6 {[%emt 0:10:04]} 14. f4 {[%emt 0:10:07]} Nc6 {[%emt 0:01:37]} 15. Nd5 {[%emt 0:03:35]} Kf7 {[%emt 0:02:00]} 16. Nh4 {[%emt 0:02:47]} Nd4 {[%emt 0:14:56]} 17. Ne3 {[%emt 0:01:53]} f5 {[%emt 0:02:21]} 18. exf5 {[%emt 0:02:55]} gxf5 {[%emt 0:02:20]} 19. Qh3 {[%emt 0:04:31]} Qf6 {[%emt 0:03:10]} 20. Nf3 {[%emt 0:02:52]} Bh6 {[%emt 0:05:02]} 21. c3 {[%emt 0:02:48]} Nxf3+ {[%emt 0:03:16]} 22. Qxf3 {[%emt 0:00:01]} Rhg8 {[%emt 0:03:43]} 23. Bd2 {[%emt 0:04:51]} Rab8 {[%emt 0:03:22]} 24. b3 {[%emt 0:02:14]} Rg6 {[%emt 0:03:00]} 25. Nd5 {[%emt 0:02:58]} Qd8 {[%emt 0:00:28]} 26. Rxe6 {[%emt 0:12:03]} Rxe6 {[%emt 0:04:12]} 27. Qh5+ {[%emt 0:00:36]} Kg8 {[%emt 0:01:17]} 28. Qxf5 {[%emt 0:00:58]} Rg6 {[%emt 0:01:07]} 29. Re1 {[%emt 0:02:16]} Kh8 {[%emt 0:02:13]} 30. Qh3 {[%emt 0:04:19]} Bf8 {[%emt 0:05:09]} 31. f5 {[%emt 0:02:13]} Rg7 {[%emt 0:00:01]} 32. c4 {[%emt 0:01:10]} c6 {[%emt 0:00:32]} 33. Nf4 {[%emt 0:00:38]} d5 {[%emt 0:00:01]} 34. Ne6 {[%emt 0:00:39]} Qf6 {[%emt 0:00:02]} 35. Bf4 {[%emt 0:01:09]} Ra8 {[%emt 0:02:23]} 36. Be5 {[%emt 0:00:19]} Qf7 {[%emt 0:00:02]} 37. Ng5 {[%emt 0:01:18]} Qg8 {[%emt 0:00:01]} 38. Qh5 {[%emt 0:00:52]} Raa7 {[%emt 0:00:16]} 39. Ne6 {[%emt 0:00:37]} Qf7 {[%emt 0:00:24]} 40. Qxf7 {[%emt 0:00:25]} Raxf7 {[%emt 0:00:02]} 41. Nxf8 {[%emt 0:00:38]} Rxf8 {[%emt 0:00:17]} 42. cxd5 {[%emt 0:00:25]} cxd5 {[%emt 0:00:06]} 43. Rc1 {[%emt 0:00:35]} Rxf5 {[%emt 0:00:35]} 44. Bxg7+ {[%emt 0:00:04]} Kxg7 {[%emt 0:00:01]} 45. Rxc5 {[%emt 0:00:01]} Kf6 {[%emt 0:00:47]} 46. Rc2 {[%emt 0:01:10]} Ke5 {[%emt 0:00:21]} 47. Rf2 {[%emt 0:00:23]} Rg5 {[%emt 0:01:07]} 48. Kf1 {[%emt 0:00:39]} Ke4 {[%emt 0:00:48]} 49. Ke2 {[%emt 0:00:15]} d4 {[%emt 0:00:06]} 50. g3 {[%emt 0:00:28]} Ra5 {[%emt 0:00:34]} 51. Rf4+ {[%emt 0:00:26]} Ke5 {[%emt 0:00:02]} 52. Kd3 {[%emt 0:00:46]} Rxa2 {[%emt 0:00:20]} 53. Rh4 {[%emt 0:00:01]} Rb2 {[%emt 0:00:50]} 54. Rh5+ {[%emt 0:00:10]} Kf6 {[%emt 0:00:03]} 55. Rxh7 {[%emt 0:00:07]} Rxb3+ {[%emt 0:00:05]} 56. Kxd4 {[%emt 0:00:05]} Rb2 {[%emt 0:00:53]} 57. Ke3 {[%emt 0:00:59]} Kg6 {[%emt 0:00:43]} 58. Rh8 {[%emt 0:00:22]} a5 {[%emt 0:00:15]} 59. h4 {[%emt 0:00:13]} a4 {[%emt 0:00:45]} 60. Ra8 {[%emt 0:00:18]} Rb3+ {[%emt 0:00:09]} 61. Kf4 {[%emt 0:00:00]} a3 {[%emt 0:00:43]} 62. Ra6+ {[%emt 0:00:12]} Kg7 {[%emt 0:00:07]} 63. h5 {[%emt 0:00:13]} Rb4+ {[%emt 0:02:01]} 64. Kg5 {[%emt 0:00:01]} Rb5+ {[%emt 0:00:06]} 65. Kh4 {[%emt 0:00:06]} Rb3 {[%emt 0:00:28]} 66. g4 {[%emt 0:00:15]} Rc3 {[%emt 0:00:10]} 67. h6+ {[%emt 0:02:23]} Kf7 {[%emt 0:00:37]} 68. Kh5 {[%emt 0:01:15]} Rh3+ {[%emt 0:00:10]} 69. Kg5 {[%emt 0:00:03]} Rb3 {[%emt 0:00:11]} 70. Ra7+ {[%emt 0:00:05]} Kg8 {[%emt 0:00:09]} 71. Kh5 {[%emt 0:00:38]} Rc3 {[%emt 0:00:40]} 72. g5 {[%emt 0:00:47]} Rb3 {[%emt 0:00:06]} 73. h7+ {[%emt 0:00:14]} Kh8 {[%emt 0:00:06]} 74. Kh6 {[%emt 0:00:05]} Rb8 {[%emt 0:00:50]} 75. g6 {[%emt 0:00:08]} 1-0

[Event "EYCC O18-ch 2024"]
[Site "Prague"]
[Date "2024.08.29"]
[Round "7.14"]
[White "Belkaid, Sohan"]
[Black "Engin, Onur Cinar"]
[Result "1-0"]
[ECO "B10"]
[WhiteElo "2384"]
[BlackElo "2215"]
[Annotator "RC"]
[PlyCount "85"]
[EventDate "2024.08.19"]
[EventType "swiss"]
[EventCountry "CZE"]
[SourceTitle "playchess.com"]
[Source "ChessBase"]
[SourceQuality "1"]
[TimeControl "5400+30"]

1. e4 {[%emt 0:00:07]} c6 {[%emt 0:00:04]} 2. Nc3 {[%emt 0:00:17]} d5 {[%emt 0:00:06]} 3. Nf3 {[%emt 0:00:17]} dxe4 {[%emt 0:00:06]} 4. Nxe4 {[%emt 0:00:09]} Nf6 {[%emt 0:00:09]} 5. Qe2 {[%emt 0:00:14]} Nxe4 {[%emt 0:00:09]} 6. Qxe4 {[%emt 0:00:09]} Nd7 {[%emt 0:00:09]} 7. Bc4 {[%emt 0:00:15]} Nf6 {[%emt 0:00:08]} 8. Ne5 {[%emt 0:00:09]} e6 {[%emt 0:00:07]} 9. Qf4 {[%emt 0:00:09]} Bd6 {[%emt 0:03:46]} 10. d4 {[%emt 0:00:31]} Qc7 {[%emt 0:05:44]} 11. O-O {[%emt 0:02:36]} O-O {[%emt 0:02:39]} 12. Bd3 {[%emt 0:01:32]} c5 {[%emt 0:07:24]} 13. Qh4 {[%emt 0:01:20]} Bxe5 {[%emt 0:07:54]} 14. dxe5 {[%emt 0:00:21]} Qxe5 {[%emt 0:00:04]} 15. Bf4 {[%emt 0:00:27]} Qh5 {[%emt 0:03:16]} 16. Qxh5 {[%emt 0:04:32]} Nxh5 {[%emt 0:00:02]} 17. Bd6 {[%emt 0:00:11]} Rd8 {[%emt 0:05:16]} 18. Bxc5 {[%emt 0:02:15]} Bd7 {[%emt 0:06:50]} 19. Be3 {[%emt 0:20:31]} Nf6 {[%emt 0:03:02]} 20. Be2 {[%emt 0:01:54]} Nd5 {[%emt 0:04:33]} 21. Bd2 {[%emt 0:01:58]} Bc6 {[%emt 0:06:09]} 22. Rfd1 {[%emt 0:06:28]} e5 {[%emt 0:04:23]} 23. Bf1 {[%emt 0:01:16]} Nf4 {[%emt 0:04:44]} 24. f3 {[%emt 0:05:52]} g5 {[%emt 0:03:48]} 25. Be3 {[%emt 0:03:04]} b6 {[%emt 0:06:50]} 26. Rxd8+ {[%emt 0:11:14]} Rxd8 {[%emt 0:00:05]} 27. a4 {[%emt 0:00:11]} Rd7 {[%emt 0:10:26]} 28. a5 {[%emt 0:06:25]} b5 {[%emt 0:02:05]} 29. a6 {[%emt 0:00:33]} Ne6 {[%emt 0:08:17]} 30. Ra5 {[%emt 0:06:12]} Nd4 31. c4 {[%emt 0:14:58]} Nb3 {[%emt 0:03:36]} 32. Ra3 {[%emt 0:00:16]} bxc4 {[%emt 0:00:59]} 33. Bxc4 {[%emt 0:00:10]} Nd2 {[%emt 0:02:35]} 34. Be2 {[%emt 0:01:08]} e4 {[%emt 0:00:39]} 35. Bxg5 {[%emt 0:01:34]} exf3 {[%emt 0:00:15]} 36. gxf3 {[%emt 0:00:21]} Rd5 {[%emt 0:00:57]} 37. Be3 {[%emt 0:01:15]} Rd7 {[%emt 0:01:10]} 38. Kf2 {[%emt 0:00:52]} Kg7 {[%emt 0:00:22]} 39. Rc3 {[%emt 0:01:27]} Ba4 {[%emt 0:00:27]} 40. Rd3 {[%emt 0:00:23]} Rxd3 {[%emt 0:00:08]} 41. Bxd3 {[%emt 0:00:02]} Nb3 {[%emt 0:00:11]} 42. Bxa7 {[%emt 0:00:08]} Bc6 {[%emt 0:00:41]} 43. Bb6 {[%emt 0:00:11]} 1-0

[Event "EYCC O18-ch 2024"]
[Site "Prague"]
[Date "2024.08.29"]
[Round "7.14"]
[White "Szikszai, Bertalan"]
[Black "Maldonado Mena, German"]
[Result "1/2-1/2"]
[ECO "B30"]
[WhiteElo "2278"]
[BlackElo "2073"]
[Annotator "RC"]
[PlyCount "122"]
[EventDate "2024.08.19"]
[EventType "swiss"]
[EventCountry "CZE"]
[SourceTitle "playchess.com"]
[Source "ChessBase"]
[SourceQuality "1"]
[TimeControl "5400+30"]

1. e4 {[%emt 0:00:05]} c5 {[%emt 0:00:05]} 2. Nf3 {[%emt 0:00:04]} Nc6 {[%emt 0:00:04]} 3. Bb5 {[%emt 0:00:17]} e6 {[%emt 0:00:05]} 4. O-O {[%emt 0:00:13]} Nge7 {[%emt 0:00:14]} 5. Re1 {[%emt 0:00:11]} Nd4 {[%emt 0:01:41]} 6. Nxd4 {[%emt 0:00:10]} cxd4 {[%emt 0:00:06]} 7. c3 {[%emt 0:00:22]} Nc6 {[%emt 0:00:06]} 8. a4 {[%emt 0:06:08]} Be7 {[%emt 0:02:55]} 9. Na3 {[%emt 0:16:37]} O-O {[%emt 0:00:29]} 10. Nc2 {[%emt 0:02:49]} dxc3 {[%emt 0:18:38]} 11. dxc3 {[%emt 0:00:53]} d6 {[%emt 0:01:32]} 12. h3 {[%emt 0:11:38]} a6 {[%emt 0:00:43]} 13. Bf1 {[%emt 0:00:44]} b6 {[%emt 0:00:08]} 14. Bf4 {[%emt 0:06:57]} Bb7 {[%emt 0:02:25]} 15. Qh5 {[%emt 0:02:05]} Ne5 {[%emt 0:08:06]} 16. Rad1 {[%emt 0:05:52]} Qc7 {[%emt 0:01:27]} 17. Nd4 {[%emt 0:06:56]} Rfd8 {[%emt 0:01:04]} 18. Bg3 {[%emt 0:00:41]} Qc5 {[%emt 0:01:10]} 19. Qe2 {[%emt 0:05:40]} Ng6 {[%emt 0:20:32]} 20. Qc2 {[%emt 0:04:43]} Rac8 {[%emt 0:00:39]} 21. Bd3 {[%emt 0:01:48]} Bf6 {[%emt 0:02:59]} 22. Nb3 {[%emt 0:03:12]} Qg5 {[%emt 0:00:27]} 23. Nd2 {[%emt 0:00:47]} Qc5 {[%emt 0:07:16]} 24. Nb3 {[%emt 0:08:29]} Qg5 {[%emt 0:00:09]} 25. Qd2 {[%emt 0:04:58]} Qxd2 {[%emt 0:10:38]} 26. Nxd2 {[%emt 0:00:03]} Be5 {[%emt 0:02:00]} 27. Kh2 {[%emt 0:01:31]} Bxg3+ {[%emt 0:03:03]} 28. Kxg3 {[%emt 0:00:06]} Ne5 {[%emt 0:00:05]} 29. Bf1 {[%emt 0:00:37]} g5 {[%emt 0:00:39]} 30. f3 {[%emt 0:03:14]} Kf8 {[%emt 0:02:36]} 31. Kf2 {[%emt 0:00:24]} Ke7 {[%emt 0:00:35]} 32. g3 {[%emt 0:00:19]} Rb8 {[%emt 0:04:24]} 33. Ke3 {[%emt 0:01:26]} d5 {[%emt 0:02:56]} 34. f4 {[%emt 0:00:53]} gxf4+ {[%emt 0:00:33]} 35. gxf4 {[%emt 0:00:02]} Nd7 {[%emt 0:01:11]} 36. e5 {[%emt 0:01:01]} Nc5 {[%emt 0:00:28]} 37. Ra1 {[%emt 0:01:13]} Rg8 {[%emt 0:00:30]} 38. b4 {[%emt 0:01:55]} Ne4 {[%emt 0:00:46]} 39. Nxe4 {[%emt 0:00:23]} dxe4 {[%emt 0:00:06]} 40. Kf2 {[%emt 0:00:52]} Rbc8 {[%emt 0:00:14]} 41. c4 {[%emt 0:00:44]} f6 {[%emt 0:01:47]} 42. exf6+ {[%emt 0:00:45]} Kxf6 {[%emt 0:00:01]} 43. Rad1 {[%emt 0:00:18]} Ke7 {[%emt 0:00:07]} 44. Be2 {[%emt 0:03:21]} Rcf8 {[%emt 0:00:13]} 45. Rg1 {[%emt 0:00:15]} Rxg1 {[%emt 0:04:46]} 46. Rxg1 {[%emt 0:00:04]} Rxf4+ {[%emt 0:00:18]} 47. Ke3 {[%emt 0:00:03]} Rf5 {[%emt 0:00:06]} 48. Rg7+ {[%emt 0:01:13]} Rf7 {[%emt 0:00:05]} 49. Rg8 {[%emt 0:00:07]} Rf8 {[%emt 0:00:03]} 50. Rg4 {[%emt 0:01:06]} Rf6 {[%emt 0:02:01]} 51. Rh4 {[%emt 0:00:12]} h6 {[%emt 0:00:56]} 52. Rh5 {[%emt 0:00:13]} Rg6 {[%emt 0:00:36]} 53. Bg4 {[%emt 0:00:04]} Bc6 {[%emt 0:01:34]} 54. b5 {[%emt 0:01:02]} axb5 {[%emt 0:00:02]} 55. axb5 {[%emt 0:00:08]} Bb7 {[%emt 0:00:18]} 56. c5 {[%emt 0:01:56]} bxc5 {[%emt 0:00:01]} 57. Rxc5 {[%emt 0:00:05]} Kd6 {[%emt 0:00:03]} 58. Kd4 {[%emt 0:01:00]} Rg5 {[%emt 0:00:24]} 59. Rxg5 {[%emt 0:00:24]} hxg5 {[%emt 0:00:01]} 60. Bh5 {[%emt 0:00:32]} Bd5 {[%emt 0:02:26]} 61. Be2 {[%emt 0:00:29]} e5+ {[%emt 0:00:41]} 1/2-1/2

[Event "EYCC O18-ch 2024"]
[Site "Prague"]
[Date "2024.08.29"]
[Round "7.15"]
[White "Smolik, Jachym"]
[Black "Chyzy, Jakub"]
[Result "1-0"]
[ECO "A22"]
[WhiteElo "2290"]
[BlackElo "2368"]
[Annotator "RC"]
[PlyCount "81"]
[EventDate "2024.08.19"]
[EventType "swiss"]
[EventCountry "CZE"]
[SourceTitle "playchess.com"]
[Source "ChessBase"]
[SourceQuality "1"]
[TimeControl "5400+30"]

1. c4 {[%emt 0:00:01]} e5 {[%emt 0:00:06]} 2. Nc3 {[%emt 0:00:24]} Nf6 {[%emt 0:00:05]} 3. g3 {[%emt 0:00:14]} c6 {[%emt 0:01:03]} 4. d4 {[%emt 0:00:24]} exd4 {[%emt 0:13:58]} 5. Qxd4 {[%emt 0:00:03]} d5 {[%emt 0:00:15]} 6. Bg2 {[%emt 0:00:53]} Be6 {[%emt 0:00:07]} 7. cxd5 {[%emt 0:01:25]} cxd5 {[%emt 0:00:13]} 8. Nf3 {[%emt 0:01:22]} Nc6 {[%emt 0:00:06]} 9. Qa4 {[%emt 0:01:43]} Bc5 {[%emt 0:04:17]} 10. O-O {[%emt 0:01:32]} O-O {[%emt 0:01:38]} 11. Bf4 {[%emt 0:06:44]} Qb6 {[%emt 0:28:28]} 12. Qc2 {[%emt 0:12:13]} Nb4 {[%emt 0:01:41]} 13. Qb1 {[%emt 0:06:10]} h6 {[%emt 0:22:13]} 14. Na4 {[%emt 0:03:56]} Qb5 {[%emt 0:00:11]} 15. Nxc5 {[%emt 0:00:08]} Qxc5 {[%emt 0:00:03]} 16. Rc1 {[%emt 0:04:25]} Qb6 {[%emt 0:05:25]} 17. Be3 {[%emt 0:03:16]} Qa5 {[%emt 0:00:37]} 18. Nd4 {[%emt 0:06:57]} Rac8 {[%emt 0:00:44]} 19. Nxe6 {[%emt 0:05:20]} fxe6 {[%emt 0:00:11]} 20. Qg6 {[%emt 0:06:10]} Rxc1+ {[%emt 0:00:50]} 21. Rxc1 {[%emt 0:00:02]} Kh8 {[%emt 0:00:26]} 22. Rc5 {[%emt 0:04:37]} Qd8 {[%emt 0:03:21]} 23. Rb5 {[%emt 0:00:06]} Nc6 {[%emt 0:00:03]} 24. Rxb7 {[%emt 0:00:04]} Ne7 {[%emt 0:01:47]} 25. Qd3 {[%emt 0:01:00]} Nf5 {[%emt 0:00:04]} 26. Bc5 {[%emt 0:04:59]} Qc8 {[%emt 0:00:26]} 27. Qb5 {[%emt 0:02:26]} a6 {[%emt 0:00:00]} 28. Qb6 {[%emt 0:01:36]} Rg8 {[%emt 0:02:56]} 29. Rc7 {[%emt 0:05:44]} Qe8 {[%emt 0:00:05]} 30. Qc6 {[%emt 0:00:35]} Qh5 {[%emt 0:00:19]} 31. Qxe6 {[%emt 0:00:58]} d4 {[%emt 0:01:25]} 32. Bf3 {[%emt 0:02:34]} Qg5 {[%emt 0:00:11]} 33. Be7 Nxe7 {[%emt 0:01:16]} 34. Qxe7 {[%emt 0:04:08]} Qa5 {[%emt 0:00:32]} 35. Qc5 {[%emt 0:01:11]} Qxa2 {[%emt 0:03:21]} 36. Qxd4 {[%emt 0:00:07]} Rb8 {[%emt 0:00:02]} 37. Rxg7 {[%emt 0:02:04]} Kxg7 {[%emt 0:00:14]} 38. Qa7+ {[%emt 0:00:02]} Nd7 {[%emt 0:00:05]} 39. Qxd7+ {[%emt 0:00:49]} Qf7 {[%emt 0:00:02]} 40. Qd4+ {[%emt 0:00:47]} Qf6 {[%emt 0:01:51]} 41. Qa7+ {[%emt 0:00:04]} 1-0